{"text_format":"1","workbook":"xlsx","n_sheets":12,"sheets":["1. Forside","2. Samlet prisloft","3. Driftsomkostninger","4. Historiske investeringer","5. Gennemførte investeringer","6. Korrektion investeringer","7. Planlagte investeringer","8. 1-1 omkostninger","9. Miljø- og servicemål","10. Nettofinansielle poster","11. Over- eller underdækning","12. Kontrol med indtægtsrammen"],"not_rendered":{"charts":0,"images":0,"macros":1,"external_links":0,"defined_names":0,"comments":0,"pivot_tables":0},"unopened":[],"bounds":{"document_bytes":16777216,"sheet_cells":100000,"rows_first":2000,"rows_last":500,"rows_between":2000,"halvings":0,"cell_chars":16384,"cell_head_chars":4096},"cells_cut":0,"cells_raw":0,"read":"whole","date_system":"1900"}

{"sheet":"1. Forside","index":0,"n_rows":26,"n_cols":4,"rows_kept":26,"cut":false,"hidden":false,"merged":[[20,3,20,5],[19,3,19,5],[18,3,18,5],[7,3,7,5],[12,3,12,5],[15,3,15,5],[16,3,16,5],[17,3,17,5],[25,3,25,5],[24,3,24,5],[23,3,23,5],[22,3,22,5],[21,3,21,5]]}
["Energi Viborg Vand A/S"]
[]
[]
[]
[]
[]
[]
[null,null,null,"Bilag A"]
[]
[]
[]
[]
[null,null,null,"Indholdsfortegnelse"]
[]
[]
[null,null,"Fane nr. 2","Samlet prisloft "]
[null,null,"Fane nr. 3","Driftsomkostninger"]
[null,null,"Fane nr. 4","Historiske investeringer "]
[null,null,"Fane nr. 5","Gennemførte investeringer"]
[null,null,"Fane nr. 6","Korrektion investeringer"]
[null,null,"Fane nr. 7","Planlagte investeringer"]
[null,null,"Fane nr. 8","1:1 omkostninger"]
[null,null,"Fane nr. 9","Miljø- og servicemål"]
[null,null,"Fane nr. 10","Nettofinansielle poster"]
[null,null,"Fane nr. 11","Over- eller underdækning"]
[null,null,"Fane nr. 12","Kontrol med indtægtsrammen og oversigt over ekstraordinære effektiviseringsgevinster"]

{"sheet":"2. Samlet prisloft","index":1,"n_rows":38,"n_cols":6,"rows_kept":38,"cut":false,"hidden":false,"merged":[[3,1,3,5]]}
[{"$f":"'1. Forside'!A1","v":"Energi Viborg Vand A/S"}]
[]
[]
[null,"Fane 2. Samlet prisloft for 2015"]
[]
[null,"Driftsomkostninger"]
[null,"Driftsomkostninger i prisloftet for 2014",{"$f":"'3. Driftsomkostninger'!C20","v":16113728.564999999},"kr."]
[null,"Bortfald af væsentlige omkostninger",{"$f":"-'3. Driftsomkostninger'!C16","v":0},"kr."]
[null,"Korrektion for prisudviklingen 2014-2015",{"$f":"'3. Driftsomkostninger'!C22","v":12890.982852000001},"kr."]
[null,"Forhøjelse til effektivt niveau iht. benchmarkingen",{"$f":"'3. Driftsomkostninger'!C28","v":0},"kr."]
[null,"Korrektion for generelt effektiviseringskrav",{"$f":"-'3. Driftsomkostninger'!C34","v":-70900.405685999998},"kr."]
[null,"Korrektion for individuelt effektiviseringskrav",{"$f":"-'3. Driftsomkostninger'!C43","v":-364975.96185000002},"kr."]
[null,"Driftsomkostninger i alt",{"$f":"SUM(C7:C12)","v":15690743.180315999},"kr.",{"$f":"C13","v":15690743.180315999}," kr."]
[null,"Investeringer"]
[null,"Tillæg for historiske investeringer",{"$f":"'4. Historiske investeringer'!C9","v":10016487.901760066},"kr."]
[null,"Tillæg for gennemførte investeringer i 2011-2013",{"$f":"'5. Gennemførte investeringer'!F29","v":1326528.3933333331},"kr."]
[null,"Korrektion af tillæg for planlagte investeringer vedrørende 2013  ",{"$f":"'6. Korrektion investeringer'!C10","v":811286.0399999998},"kr."]
[null,"Tillæg for planlagte investeringer i 2014 og 2015",{"$f":"'7. Planlagte investeringer'!F35","v":846260},"kr."]
[null,"Investeringstillæg i alt",{"$f":"SUM(C15:C18)","v":13000562.335093398},"kr.",{"$f":"C19","v":13000562.335093398}," kr."]
[null,"Øvrige omkostninger mv."]
[null,"Tillæg for 1:1 omkostninger i 2015",{"$f":"'8. 1-1 omkostninger'!C10","v":218000},"kr."]
[null,"Tillæg for afgift for ledningsført vand i 2015",{"$f":"'8. 1-1 omkostninger'!C15","v":15019000},"kr."]
[null,"Tillæg vedr. revisorerklæringer og DANVA/FVD-kontingent",{"$f":"'8. 1-1 omkostninger'!C21","v":145000},"kr."]
[null,"Korrektion ift. faktiske 1:1 omkostninger i 2013",{"$f":"'8. 1-1 omkostninger'!C27","v":-4508},"kr."]
[null,"Tillæg for driftsomkostninger til miljø- og servicemål i 2015",{"$f":"'9. Miljø- og servicemål'!C13","v":705000},"kr."]
[null,"Korrektion ift. faktiske driftsomkostninger til miljø- og servicemål i 2013",{"$f":"'9. Miljø- og servicemål'!C20","v":-201308},"kr."]
[null,"Tillæg/fradrag for nettofinansielle poster i 2015",{"$f":"'10. Nettofinansielle poster'!C9","v":1100000},"kr."]
[null,"Korrektion ift. faktiske nettofinansielle poster i 2013",{"$f":"'10. Nettofinansielle poster'!C16","v":-378876},"kr."]
[null,"Øvrige omkostninger mv. i alt",{"$f":"SUM(C21:C28)","v":16602308},"kr.",{"$f":"C29","v":16602308}," kr."]
[null,"Historisk over- eller underdækning"]
[null,"Tillæg/fradrag for over- eller underdækning til og med 2010",{"$f":"'11. Over- eller underdækning'!C11","v":0},"kr.",{"$f":"C31","v":0}," kr."]
[null,"Korrektion i forhold til tidligere indtægtsramme "]
[null,"Korrektion for overholdelse af indtægtsramme i prisloft 2013",{"$f":"'12. Kontrol med indtægtsrammen'!E27","v":29503},"kr.",{"$f":"C33","v":29503}," kr."]
[null,"Samlet prisloft"]
[null,"Indtægtsramme i 2015 ",null,null,{"$f":"SUM(E13:E33)","v":45323116.515409395}," kr."]
[null,"Debiteret vandmængde i 2013",null,null,2306114," m3"]
[null,"Prisloft 2015",null,null,{"$f":"E35/E36","v":19.653458812274412}," kr./m3"]
[null,"Prisloft 2015 ekskl. afgift for ledningsført vand ",null,null,{"$f":"(E35-C22)/E36","v":13.14077123481727}," kr./m3"]

{"sheet":"3. Driftsomkostninger","index":2,"n_rows":43,"n_cols":4,"rows_kept":43,"cut":false,"hidden":false,"merged":[[3,1,3,3]]}
[{"$f":"'1. Forside'!A1","v":"Energi Viborg Vand A/S"}]
[]
[]
[null,"Fane 3. Driftsomkostninger "]
[]
[null,"Driftsomkostningerne i prisloftet for 2014"]
[null,"Korrigerede driftsomkostninger i prisloftet for 2013 (DOiPL 2013)",16349571,"kr."]
[null,"Prisfremskrivning 1,5 pct.",{"$f":"0.015*SUM(C7:C7)","v":245243.565},"kr."]
[null,"Generelt effektiviseringskrav (0 pct.)",0,"kr."]
[null,"Individuelt effektiviseringskrav ",-481086,"kr."]
[null,"Driftsomkostningerne i prisloftet for 2014 (DOiPL 2014)",{"$f":"SUM(C7:C10)","v":16113728.564999999},"kr."]
[]
[]
[null,"Korrektion for forventet bortfald af væsentlige omkostninger"]
[null,"Selskabets indberettede bortfald af væsentlige omkostninger inden 2015",0,"kr."]
[null,"Korrektion for forventet bortfald ",{"$f":"SUM(C15:C15)","v":0},"kr."]
[]
[]
[null,"Korrektion for prisudviklingen fra 2014-2015"]
[null,"Driftsomkostningerne i prisloftet for 2014",{"$f":"C11-C16","v":16113728.564999999},"kr."]
[null,"Prisudvikling 2014 - 2015 ",0.08,"pct."]
[null,"Korrektion for prisudvikling",{"$f":"C20*(C21/100)","v":12890.982852000001},"kr."]
[]
[]
[null,"Eventuel forhøjelse til effektivt niveau iht. benchmarkingen"]
[null,"Selskabets effektive driftsomkostninger iht. benchmarkingen",12096576.360300001,"kr."]
[null,"Selskabets pristalskorrigerede driftsomkostninger i 2015-niveau",{"$f":"C20+C22","v":16126619.547852},"kr."]
[null,"Eventuel forhøjelse til effektivt niveau",{"$f":"IF(C27>C26,0,C26-C27)","v":0},"kr."]
[]
[]
[null,"Korrektion for generelt effektiviseringskrav"]
[null,"Driftsomkostningerne i prisloftet for 2014",{"$f":"C20","v":16113728.564999999},"kr. "]
[null,"Generelt effektiviseringskrav ",0.44,"pct."]
[null,"Endeligt generelt effektiviseringskrav",{"$f":"C32*(C33/100)","v":70900.405685999998},"kr. "]
[]
[]
[null,"Korrektion for individuelt effektiviseringskrav"]
[null,"Rå effektiviseringspotentiale",4289474.6597999996,"kr."]
[null,"Effektiviseringspotentiale efter eventuel korrektion for særlige forhold",4017152.6396999997,"kr."]
[null,"Effektiviseringspotentiale efter forsigtighedshensyn",1459903.8474000001,"kr."]
[null,"Effektiviseringspotentiale efter eventuel korrektion for sammensætning af signifikante costdrivere",1459903.8474000001,"kr. "]
[null,"Umiddelbart effektiviseringskrav",{"$f":"C41/4","v":364975.96185000002},"kr."]
[null,"Endeligt individuelt effektiviseringskrav",{"$f":"IF(C42>0.05*C20,0.05*C20,IF(C42<0.01*C20,0,C42))","v":364975.96185000002},"kr. "]

{"sheet":"4. Historiske investeringer","index":3,"n_rows":9,"n_cols":4,"rows_kept":9,"cut":false,"hidden":false,"merged":[[3,1,3,2]]}
[{"$f":"'3. Driftsomkostninger'!A1","v":"Energi Viborg Vand A/S"}]
[]
[]
[null,"Fane 4. Historiske investeringer "]
[]
[null,"Tillæg for historiske investeringer "]
[null,"Værdi af selskabets materielle anlægsaktiver pr. 1. januar 2010",432514940.85263842,"kr."]
[null,"Den årlige standardafskrivning på de materielle anlægsaktiver iht. POLKA",10016487.901760066,"kr."]
[null,"Tillæg i alt i 2015",{"$f":"C8","v":10016487.901760066},"kr."]

{"sheet":"5. Gennemførte investeringer","index":4,"n_rows":29,"n_cols":7,"rows_kept":29,"cut":false,"hidden":false,"merged":[[3,1,3,5],[6,5,6,6]]}
[{"$f":"'4. Historiske investeringer'!A1","v":"Energi Viborg Vand A/S"}]
[]
[]
[null,"Fane 5. Gennemførte investeringer i 2010 - 2013 "]
[]
[null,"Tillæg for gennemførte investeringer i 2013"]
[null," Beskrivelse af investeringen   ","Årstal ","Std. levetid (år)   "," Anskaffelses-pris (kr.)","Afskrivning "]
[null,"Sikring (terror, hærværk), SRO",2013,10,2749815,{"$f":"E8/D8","v":274981.5},"kr."]
[null,"Sikring (terror, hærværk), Mek./EL",2013,25,636087,25443.48,"kr."]
[null,"SRO anlæg",2013,10,53457,5345.7,"kr."]
[null,"Elanlæg",2013,20,207148,10357.4,"kr."]
[null,"Instrumenter (flowmåler+tryk transducer+alarmer)",2013,10,126961,12696.1,"kr."]
[null,"Pumpe inkl. stigrør og forerørsforsejlinger mv.",2013,15,167055,{"$f":"E13/D13","v":11137},"kr."]
[null,"Råvandsstation komplet montering og boringshus/tørbrønd",2013,30,113597,3786.5666666666666,"kr."]
[null,"Ø 50mm < Ledningsnet = Ø110 mm",2013,75,2740966,36546.213333333333,"kr."]
[null,"Skelbrønd, Mek./EL",2013,15,21355,1423.6666666666667,"kr."]
[null,"Skelbrønd, Konstruktioner",2013,50,49828,996.56,"kr."]
[null,"Stik på ledningsnet, Konstruktioner",2013,75,2317058,30894.106666666667,"kr."]
[null,"Pumpestation (inkl. evt. hydrofor)/trykforøger, SRO",2013,10,27239,2723.9,"kr."]
[null,"Pumpestation (inkl. evt. hydrofor)/trykforøger, Mek./EL",2013,25,21105,844.2,"kr."]
[null,"Pumpestation (inkl. evt. hydrofor)/trykforøger, Konstruktioner",2013,50,488176,9763.52,"kr."]
[null,"Afregningsmålere, mekaniske",2013,8,1307810,163476.25,"kr."]
[null,"Køretøjer, personbil",2013,5,395563,79112.600000000006,"kr."]
[null,"Beluftningsanlæg, ika-beluftning, Kontruktioner",2013,50,412072,8241.44,"kr."]
[null,"Beholderanlæg - vandtårn",2013,20,89043,4452.1499999999996,"kr."]
[null,"Beholderanlæg - vandtårn",2013,30,991220,33040.666666666664,"kr."]
[null,"Tillæg for 2013 ",null,null,null,{"$f":"SUM(F8:F26)","v":715263.0199999999},"kr."]
[null,"Tillæg for 2010 - 2012",null,null,null,611265.37333333329,"kr."]
[null,"Samlet tillæg for gennemførte investeringer",null,null,null,{"$f":"F27+F28","v":1326528.3933333331},"kr."]

{"sheet":"6. Korrektion investeringer","index":5,"n_rows":10,"n_cols":4,"rows_kept":10,"cut":false,"hidden":false,"merged":[[3,1,3,3]]}
[{"$f":"'5. Gennemførte investeringer'!A1","v":"Energi Viborg Vand A/S"}]
[]
[]
[null,"Fane 6. Korrektion af tillæg for planlagte investeringer"]
[]
[null,"Korrektion af tillæg for planlagte investeringer vedr. 2013"]
[null,"Tillæg for planlagte investeringer i 2013 i prisloft 2013",187080,"kr."]
[null,"Tillæg for planlagte investeringer i 2013 i prisloft 2014",432160,"kr."]
[null,"Selskabets faktiske afskrivninger på gennemførte investeringer i 2013",{"$f":"'5. Gennemførte investeringer'!F27","v":715263.0199999999},"kr."]
[null,"Korrektion af tillæg for planlagte investeringer vedr. 2013",{"$f":"C9-C7+C9-C8","v":811286.0399999998},"kr."]

{"sheet":"7. Planlagte investeringer","index":6,"n_rows":35,"n_cols":7,"rows_kept":35,"cut":false,"hidden":false,"merged":[[6,5,6,6],[3,1,3,6]]}
[{"$f":"'6. Korrektion investeringer'!A1","v":"Energi Viborg Vand A/S"}]
[]
[]
[null,"Fane 7. Planlagte investeringer "]
[]
[null,"Tillæg for planlagte investeringer i 2014 og 2015"]
[null,"Beskrivelse af investeringen   ","Årstal ","Std. levetid (år)   ","Anskaffelses-pris (kr.)   ","Afskrivning"]
[null,"Råvandsstation komplet montering og boringshus/tørbrønd",2014,30,50000,{"$f":"E8/D8","v":1666.6666666666667},"kr."]
[null,"Pumpe inkl. stigrør og forerørsforsejlinger mv.",2014,15,70000,4666.666666666667,"kr."]
[null,"SRO anlæg",2014,10,30000,3000,"kr."]
[null,"Udpumpningsanlæg, rentvandspumper på vandværk",2014,25,850000,34000,"kr."]
[null,"Pumpestation (inkl. evt. hydrofor)/trykforøger, Konstruktioner",2014,50,750000,15000,"kr."]
[null,"Pumpestation (inkl. evt. hydrofor)/trykforøger, Mek./EL",2014,25,150000,6000,"kr."]
[null,"Beholderanlæg - vandtårn",2014,50,1000000,20000,"kr."]
[null,"Køretøjer, personbil",2014,5,400000,80000,"kr."]
[null,"Køretøjer, personbil",2014,5,400000,80000,"kr."]
[null,"Ø 50mm < Ledningsnet = Ø110 mm",2014,75,5638000,75173.333333333328,"kr."]
[null,"Stik på ledningsnet, Konstruktioner",2014,75,352000,4693.333333333333,"kr."]
[null,"Afregningsmålere, mekaniske",2014,8,1200000,{"$f":"E19/D19","v":150000},"kr."]
[null,"Ledningsnet = Ø50 mm",2014,75,1717000,{"$f":"E20/D20","v":22893.333333333332},"kr."]
[null,"Køretøjer, personbil",2015,5,300000,{"$f":"E21/D21","v":60000},"kr."]
[null,"Afregningsmålere, mekaniske",2015,8,1200000,150000,"kr."]
[null,"Boring (inkl. etablering, forerør, filter og prøvepumpning)",2015,30,200000,6666.666666666667,"kr."]
[null,"Råvandsstation komplet montering og boringshus/tørbrønd",2015,30,100000,3333.3333333333335,"kr."]
[null,"Instrumenter (flowmåler+tryk transducer+alarmer)",2015,10,50000,5000,"kr."]
[null,"Pumpe inkl. stigrør og forerørsforsejlinger mv.",2015,15,50000,3333.3333333333335,"kr."]
[null,"Elanlæg",2015,20,50000,2500,"kr."]
[null,"SRO anlæg",2015,10,50000,5000,"kr."]
[null,"Ø 50mm < Ledningsnet = Ø110 mm",2015,75,4000000,53333.333333333336,"kr."]
[null,"Ventiler på Ø 50mm < Ledningsnet = Ø110 mm",2015,75,500000,6666.666666666667,"kr."]
[null,"Stik på ledningsnet, Konstruktioner",2015,75,2000000,26666.666666666668,"kr."]
[null,"Stik på ledningsnet, Mek./EL",2015,75,2000000,26666.666666666668,"kr."]
[null,"Tillæg for 2014",null,null,null,{"$f":"SUMIF(C8:C32,\"2014\",F8:F32)","v":497093.33333333331},"kr."]
[null,"Tillæg for 2015",null,null,null,{"$f":"SUMIF(C8:C32,\"2015\",F8:F32)","v":349166.66666666674},"kr."]
[null,"Tillæg i alt",null,null,null,{"$f":"F33+F34","v":846260},"kr."]

{"sheet":"8. 1-1 omkostninger","index":7,"n_rows":27,"n_cols":4,"rows_kept":27,"cut":false,"hidden":false,"merged":[[3,1,3,3],[17,1,17,3],[23,1,23,3]]}
[{"$f":"'7. Planlagte investeringer'!A1","v":"Energi Viborg Vand A/S"}]
[]
[]
[null,"Fane 8. 1:1 omkostninger"]
[]
[null,"Tillæg for budgetterede 1:1 omkostninger i 2015"]
[null,"Betaling til Forsyningssekretariatet",33000,"kr."]
[null,"Tjenestemandspensioner",15000,"kr."]
[null,"Ejendomsskatter",170000,"kr."]
[null,"Tillæg i alt ",{"$f":"SUM(C7:C9)","v":218000},"kr."]
[]
[]
[null,"Tillæg for afgift for ledningsført vand i 2015"]
[null,"Afgift for ledningsført vand (6,53 kr./m3)",15019000,"kr."]
[null,"Tillæg i alt ",{"$f":"SUM(C14:C14)","v":15019000},"kr."]
[]
[]
[null,"Tillæg for budgetterede nødvendige udgifter til revisorerklæringer samt ordinært medlemskab af DANVA og FVD i 2015"]
[null,"Betaling for ordinært medlemskab af DANVA/FVD",115000,"kr."]
[null,"Betaling for revisorerklæringer",30000,"kr."]
[null,"Tillæg i alt ",{"$f":"SUM(C19:C20)","v":145000},"kr."]
[]
[]
[null,"Korrektion af tillæg for faktiske 1:1 omkostninger (inkl. afgift for ledningsført vand, revisorerklæringer og ordinært medlemskab af DANVA/FVD) i 2013"]
[null,"Selskabets faktiske 1:1 omkostninger mv. i 2013, jf. reguleringsregnskabet",14482885,"kr."]
[null,"Tillæg for budgetterede 1:1 omkostninger mv. i prisloft 2013",14487393,"kr."]
[null,"Korrektion af tillæg for budgetterede 1:1 omkostninger mv. i 2013",{"$f":"C25-C26","v":-4508},"kr."]

{"sheet":"9. Miljø- og servicemål","index":8,"n_rows":20,"n_cols":4,"rows_kept":20,"cut":false,"hidden":false,"merged":[[3,1,3,3]]}
[{"$f":"'8. 1-1 omkostninger'!A1","v":"Energi Viborg Vand A/S"}]
[]
[]
[null,"Fane 9. Driftsomkostninger til miljø- og servicemål "]
[]
[null,"Tillæg for budgetterede driftsomkostninger til miljø- og servicemål i 2015"]
[null,"Dokumenteret Drikkevandssikkerhed",250000,"kr."]
[null,"Afværgelse af BAM-forurening",265000,"kr."]
[null,"Drift af hydrometrisk station",0,"kr."]
[null,"Reetablering af dige",0,"kr."]
[null,"Analyse af drikkevandskvalitet",120000,"kr."]
[null,"Grundvandsbeskyttelse",70000,"kr."]
[null,"Tillæg i alt",{"$f":"SUM(C7:C12)","v":705000},"kr."]
[]
[]
[]
[null,"Korrektion af tillæg for faktiske driftsomkostninger til miljø- og servicemål i 2013"]
[null,"Selskabets faktiske driftsomkostninger til miljø- og servicemål i 2013, jf. reguleringsregnskabet",273710,"kr."]
[null,"Tillæg for budgetterede driftsomkostninger til miljø- og servicemål i prisloft 2013",475018,"kr."]
[null,"Korrektion af tillæg for budgetterede driftsomkostninger til miljø- og servicemål i 2013",{"$f":"C18-C19","v":-201308},"kr."]

{"sheet":"10. Nettofinansielle poster","index":9,"n_rows":16,"n_cols":4,"rows_kept":16,"cut":false,"hidden":false,"merged":[[3,1,3,3]]}
[{"$f":"'2. Samlet prisloft'!A1","v":"Energi Viborg Vand A/S"}]
[]
[]
[null,"Fane 10. Nettofinansielle poster"]
[]
[null,"Tillæg for budgetterede nettofinansielle poster i 2015"]
[null,"Budgetterede renteudgifter og gebyrer i 2015",1200000,"kr."]
[null,"Budgetterede renteindtægter i 2015",100000,"kr."]
[null,"Tillæg/fradrag i alt",{"$f":"C7-C8","v":1100000},"kr."]
[]
[]
[]
[null,"Korrektion af tillæg for faktiske nettofinansielle poster i 2013"]
[null,"Selskabets faktiske nettofinansielle poster i 2013, jf. reguleringsregnskabet",1093133,"kr."]
[null,"Tillæg for budgetterede nettofinansielle poster i prisloft 2013",1472009,"kr."]
[null,"Korrektion af tillæg for budgetterede nettofinansielle poster i 2013",{"$f":"C14-C15","v":-378876},"kr."]

{"sheet":"11. Over- eller underdækning","index":10,"n_rows":11,"n_cols":4,"rows_kept":11,"cut":false,"hidden":true,"merged":[[3,1,3,3]]}
[{"$f":"'1. Forside'!A1","v":"Energi Viborg Vand A/S"}]
[]
[]
[null,"Fane 11. Over- eller underdækning til og med 2010"]
[]
[null,"Tillæg/fradrag for over- eller underdækning til og med 2010"]
[null,"Opgjort over- eller underdækning per 31. december 2010",0,"kr."]
[null,"Heraf beløb indregnet i prislofterne for 2012 - 2014",0,"kr."]
[null,"Endnu ikke indregnet over- eller underdækning",{"$f":"C7-C8","v":0},"kr."]
[null,"Resterende indregningsperiode (fastsat i prisloftet for 2012)",0,"år"]
[null,"Tillæg/fradrag i alt",{"$f":"IF(C7=0,0,C9/C10)","v":0},"kr."]

{"sheet":"12. Kontrol med indtægtsrammen","index":11,"n_rows":38,"n_cols":12,"rows_kept":38,"cut":false,"hidden":false,"merged":[[3,1,3,5],[30,1,30,4],[5,1,5,5]]}
[{"$f":"'11. Over- eller underdækning'!A1","v":"Energi Viborg Vand A/S"}]
[]
[]
[null,"Fane 12. Korrektion for overholdelse af indtægtsrammen i prisloftet for 2013"]
[]
[null,"Samlet opgørelse vedrørende overholdelse af indtægtsrammen i prisloftet for 2013"]
[null,"Indtægtsramme i prisloftet for 2013",null,null,42610863,"kr."]
[null,"Ikke anvendt likviditet vedrørende investeringer i 2013"]
[null,"Tillæg for historiske investeringer ",10879248,"kr."]
[null,"Tillæg for gennemførte investeringer i 2011",305575,"kr."]
[null,"Korrektion af tillæg for planlagte investeringer i 2011",229500,"kr."]
[null,"Tillæg for planlagte investeringer i 2012 og 2013",729034,"kr."]
[null,"Indtægter fra tilslutningsbidrag",2137480,"kr."]
[null,"Indtægter fra salg af anlægsaktiver",30000,"kr."]
[null,"Erstatninger vedr. anlægsaktiver mv.",0,"kr."]
[null,"Ekstraordinær effektiviseringsgevinst anvendt til investeringer",2467457,"kr."]
[null,"Udgifter til investeringer",-14563809,"kr."]
[null,"Ikke anvendt likviditet vedr. investeringer i alt",{"$f":"SUM(C9:C17)","v":2214485},"kr.",{"$f":"IF(C18<0,0,-C18)","v":-2214485},"kr."]
[null,"Ekstraordinære effektiviseringsgevinster anvendt til takstnedsættelse"]
[null,"Ekstraordinær effektiviseringsgevinst anvendt til takstnedsættelse",0,"kr.",{"$f":"-C20","v":0},"kr."]
[null,"Korrektion af ikke opkrævet tillæg fra 2011 i prisloft 2013"]
[null,"Korrektion af ikke opkrævet tillæg fra 2011 i prisloft 2013",0,"kr.",{"$f":"-C22","v":0},"kr."]
[null,"Indtægter fra primære aktiviteter mv."]
[null,"Indtægter fra kubikmetertakster, faste takster, særbidrag, målergebyrer samt andre takster og gebyrer",40366875,"kr."]
[null,"Andre indtægter i prisloftåret, som selskabet har opnået i forbindelse med eller som følge af selskabets primære aktiviteter",0,"kr."]
[null,"Indtægter fra primære aktiviteter mv. i alt",{"$f":"SUM(C24:C25)","v":40366875},"kr.",{"$f":"-C26","v":-40366875},"kr."]
[null,"Tillæg/fradrag i prisloftet for 2015 i alt",null,null,{"$f":"E7+E18+E20+E22+E26","v":29503},"kr."]
[]
[]
[]
[null,"Oversigt over ekstraordinære effektiviseringsgevinster"]
[]
[null,null,2012,null,2013,null,2014,null,2015,null,2016]
[null,"Indhentet ekstraordinær effektiviseringsgevinst",4722461,"kr.",5138623,"kr.",null,"kr.",null,"kr.",null,"kr."]
[null,"Gevinst anvendt til investeringer",0,"kr.",2467457,"kr.",null,"kr.",null,"kr.",null,"kr."]
[null,"Gevinst anvendt til takstnedsættelse",0,"kr.",0,"kr.",null,"kr.",null,"kr.",null,"kr."]
[null,"Korrektion for  effektiviseringsgevinst der ikke er anvendt inden 4 år",0,"kr.",0,"kr.",null,"kr.",null,"kr.",{"$f":"IF(C38>SUM(E35:I36),C38-SUM(E35:I36),0)*-1","v":-2255004},"kr."]
[null,"Resterende gevinst",{"$f":"C34-C35-C36","v":4722461},"kr.",{"$f":"C38+E34-E35-E36","v":7393627},"kr.",{"$f":"E38+G34-G35-G36","v":7393627},"kr.",{"$f":"G38+I34-I35-I36","v":7393627},"kr.",{"$f":"K34-K35-K36+K37+I38","v":5138623},"kr."]